bitfinex-derivatives/quotes_ETHF0:USTF0_20251204
["timestamp","ask_amount","ask_price","bid_price","bid_amount"]
[1764862203183,5.7518,3171.6,3171.5,1.68923111]
[1764862203483,2.9414,3171.6,3171.2,4.89703111]
[1764862204083,0.00221025,3171.6,3171.5,6.032]
[1764862204285,0.00221025,3171.6,3171.5,2.9451]
[1764862204890,0.00221025,3171.6,3171.5,5.9815]
[1764862206088,3.00721025,3171.6,3171.2,4.89991934]
[1764862206292,0.00221025,3171.6,3171.5,2.9451]
[1764862206497,0.00221025,3171.6,3171.5,5.9815]
[1764862207696,3.2078,3172.7,3171.5,7.68923111]
[1764862207894,3.2078,3173.1,3172.6,5.9815]
[1764862208200,3.2078,3173.1,3172.6,9.1893]
[1764862208602,3.2078,3173.7,3172.6,9.1893]
[1764862208795,3.21076619,3173.7,3172.8,1.58162299]
[1764862210000,3.005,3172.9,3172.8,0.00472299]
[1764862210206,5.8903,3172.9,3172.8,0.00472299]
[1764862211098,3.2078,3173.2,3173.1,2.9451]
[1764862211296,3.2078,3173.2,3173.1,5.9815]
[1764862211607,3.2078,3173.6,3173.1,5.9815]
[1764862212495,3.2078,3173.6,3173.1,2.9451]
[1764862213006,3.2078,3173.6,3173.5,2.9451]
[1764862213208,6.2128,3173.6,3173.5,0.0040847]
[1764862213410,9.0981,3173.6,3173.5,0.0040847]
[1764862215402,0.00296619,3173.7,3173.6,5.9815]
[1764862215601,3.00796619,3173.7,3173.6,2.9451]
[1764862215796,0.00296619,3173.7,3173.6,5.9815]
[1764862217410,3.2078,3174.4,3173.6,5.9815]
[1764862217614,3.2078,3174.4,3173.6,7.67410356]
[1764862218005,3.2078,3174.4,3173.6,5.9815]
[1764862218400,3.2114782,3174.4,3173.6,5.9815]
[1764862218806,5.8903,3173.6,3173.5,0.0040847]
[1764862219007,3.2078,3174.0,3173.5,2.9491847]
[1764862219206,3.2114782,3174.4,3173.6,3.2078]
[1764862220012,3.2114782,3174.4,3174.3,2.9451]
[1764862220312,6.2164782,3174.4,3173.6,4.90040356]
[1764862220704,6.2164782,3174.4,3173.6,3.2078]
[1764862221318,5.8903,3173.7,3173.6,3.2078]
[1764862224020,3.005,3173.7,3173.6,6.1529]
[1764862225013,5.8903,3173.7,3173.6,3.2078]
[1764862225327,5.8903,3173.6,3173.5,0.0040847]
[1764862225917,5.8903,3172.9,3172.8,0.00472299]
[1764862226616,3.005,3172.9,3172.8,2.94982299]
[1764862226917,3.005,3172.9,3172.8,0.00869946]
[1764862227120,5.8903,3172.9,3172.8,0.00869946]
[1764862228411,3.005,3172.1,3172.0,3.2078]
[1764862228620,3.005,3172.1,3171.6,1.5769]
[1764862228925,3.005,3172.1,3171.5,4.90040356]
[1764862228926,3.005,3172.1,3171.5,3.2078]
[1764862229324,3.005,3172.1,3171.6,1.5769]
[1764862229522,3.00845845,3172.1,3171.6,1.57998236]
[1764862229724,0.00345845,3172.1,3172.0,2.9451]
[1764862229920,5.89375845,3172.1,3171.6,1.57998236]
[1764862230217,3.00845845,3172.1,3171.6,1.57998236]
[1764862231026,0.00345845,3172.1,3172.0,2.9451]
[1764862231925,5.89375845,3172.1,3171.6,0.00308236]
[1764862232223,0.00345845,3172.1,3172.0,2.9451]
[1764862232423,3.00845845,3172.1,3171.6,1.57998236]
[1764862232627,3.005,3171.7,3171.6,0.00308236]
[1764862233023,3.005,3171.7,3171.6,2.94818236]
[1764862233427,3.005,3171.7,3171.6,0.00308236]
[1764862233726,0.00345845,3172.1,3171.6,2.94818236]
[1764862234033,0.00345845,3172.1,3172.0,2.7935]
[1764862234325,0.00345845,3172.1,3172.0,5.5958]
[1764862234630,5.58445845,3172.1,3171.6,1.59529236]
[1764862234827,2.74585845,3172.1,3171.6,1.59529236]
[1764862235029,5.581,3171.7,3171.6,0.00308236]
[1764862236926,3.2078,3171.8,3171.7,2.7935]
[1764862237121,0.00345845,3172.1,3171.7,2.7935]
[1764862238421,5.581,3171.7,3171.6,0.00308236]
[1764862239025,0.00345845,3172.1,3171.6,7.03348236]
[1764862239226,5.58445845,3172.1,3171.6,1.43768236]
[1764862239621,0.00345845,3172.1,3172.0,6.7882]
[1764862239824,2.74585845,3172.1,3172.0,6.7882]
[1764862240431,0.00345845,3172.1,3172.0,6.7882]
[1764862241033,0.00345845,3172.1,3172.0,9.996]
[1764862241232,3.2078,3172.6,3172.5,5.5958]
[1764862241631,5.9502,3172.6,3172.5,2.7935]
[1764862241830,5.9502,3172.6,3171.6,4.64548236]
[1764862242131,5.95331148,3172.6,3171.6,4.64548236]
[1764862247334,1.3915,3172.5,3171.6,4.64548236]
[1764862247941,3.21091148,3172.6,3171.6,4.64548236]
[1764862249735,3.21091148,3172.6,3172.5,6.6176]
[1764862250227,0.00311148,3172.6,3172.5,6.6176]
[1764862250834,7.94481148,3172.6,3172.0,4.7003]
[1764862251442,7.94481148,3172.6,3172.5,6.0922]
[1764862251443,3.21091148,3172.6,3172.5,6.0922]
[1764862251742,7.94481148,3172.6,3172.0,4.7003]
[1764862252842,3.21091148,3172.6,3172.5,4.5997]
[1764862253540,5.46001148,3172.6,3172.5,2.2681]
[1764862253744,7.94481148,3172.6,3172.5,2.2681]
[1764862254536,4.73701148,3172.6,3172.5,2.2681]
[1764862254741,4.73701148,3172.6,3172.0,6.39290356]
[1764862255341,2.25221148,3172.6,3172.5,4.5997]
[1764862255544,0.00311148,3172.6,3172.5,6.0922]
[1764862256244,4.7339,3172.3,3172.2,1.69260356]
[1764862256449,0.00311148,3172.6,3172.2,1.69260356]
[1764862256450,0.00311148,3172.6,3172.2,6.29230356]
[1764862256639,4.7339,3172.3,3172.2,3.96070356]
[1764862257541,4.7339,3172.2,3172.1,1.69260356]
[1764862257740,4.7339,3172.1,3172.0,3.2078]
[1764862258246,2.2491,3172.1,3172.0,7.8075]
[1764862258547,4.7339,3172.1,3172.0,3.2078]
[1764862259951,4.7339,3172.1,3172.0,5.4759]
[1764862260150,4.7339,3172.1,3172.0,2.2681]
[1764862260551,1.3915,3172.5,3172.0,6.0922]
[1764862260755,2.2491,3172.1,3172.0,6.0922]
[1764862261049,2.2491,3171.9,3171.8,3.96070356]
[1764862261252,3.2078,3172.2,3172.1,4.5997]
[1764862261443,7.9417,3172.2,3171.8,1.69260356]
[1764862262151,2.2491,3171.9,3171.8,6.29230356]
[1764862262337,3.2078,3172.2,3172.1,4.5997]
[1764862262541,5.4569,3172.2,3172.1,4.5997]
[1764862262746,4.7339,3172.1,3172.0,2.2681]
[1764862262949,4.7339,3171.9,3171.8,3.96070356]
[1764862263452,3.2078,3172.2,3172.1,4.5997]
[1764862263952,4.7331,3171.9,3171.8,1.69260356]
[1764862264346,4.7331,3171.7,3171.6,0.00308236]
[1764862264548,4.7331,3171.7,3171.2,3.2078]
[1764862264549,4.7331,3171.3,3171.2,3.2078]
[1764862264848,4.7331,3171.3,3170.8,3.2078]
[1764862264849,4.7331,3170.9,3170.8,3.2078]
[1764862265044,3.2078,3171.7,3171.2,4.5912]
[1764862265251,2.4036,3171.6,3171.5,2.2574]
[1764862265440,4.7331,3171.6,3171.5,0.003154]
[1764862266043,2.4036,3171.6,3171.5,2.260554]
[1764862266242,4.7331,3171.6,3171.5,0.003154]
[1764862270250,4.7331,3171.3,3171.2,0.00473052]
[1764862270455,7.9409,3171.3,3171.2,0.00473052]
[1764862271251,7.9409,3171.3,3171.2,0.00828048]
[1764862271752,4.7331,3171.3,3171.2,2.26568048]
[1764862272055,3.2078,3171.7,3171.2,4.59948048]
[1764862272357,0.00473052,3171.9,3171.8,4.5912]
[1764862273764,2.40671148,3172.6,3172.5,2.2574]
[1764862273955,4.73621148,3172.6,3172.0,4.5286]
[1764862274460,0.00311148,3172.6,3172.5,5.912]
[1764862274753,4.73621148,3172.6,3172.0,1.3208]
[1764862274954,2.4036,3172.1,3172.0,2.2574]
[1764862275154,2.40671148,3172.6,3172.5,2.2574]
[1764862275361,0.00311148,3172.6,3172.5,5.912]
[1764862275959,2.40671148,3172.6,3172.5,2.2574]
[1764862276352,4.73621148,3172.6,3172.0,4.5286]
[1764862276655,0.00311148,3172.6,3172.5,4.5912]
[1764862276862,0.00311148,3172.6,3172.5,5.912]
[1764862277659,0.00311148,3172.6,3172.5,9.1198]
[1764862279049,3.2078,3173.1,3173.0,4.5912]
[1764862279254,5.6114,3173.1,3173.0,4.5912]
[1764862279649,7.9409,3173.1,3172.5,4.5286]
[1764862279864,7.9409,3173.1,3173.0,2.2574]
[1764862280057,7.94421426,3173.1,3173.0,2.2574]
[1764862280454,7.94421426,3173.1,3172.5,4.5286]
[1764862280655,5.61471426,3173.1,3173.0,2.2574]
[1764862280954,7.94421426,3173.1,3173.0,2.2574]
[1764862281857,0.00331426,3173.1,3173.0,5.912]
[1764862282051,3.2078,3173.5,3173.4,4.5912]
[1764862282255,2.4036,3173.2,3173.1,2.26213052]
[1764862282457,4.7331,3173.2,3173.1,0.00473052]
[1764862282856,3.2078,3173.5,3173.1,4.59593052]
[1764862283150,2.4036,3173.2,3173.1,4.59593052]
[1764862283354,3.21184065,3173.5,3173.4,4.5912]
[1764862283770,0.00404065,3173.5,3173.4,4.5912]
[1764862285258,2.40764065,3173.5,3173.4,4.5912]
[1764862285659,0.00404065,3173.5,3173.4,4.5912]
[1764862286362,3.36528,3174.4,3173.5,1.3208]
[1764862286558,3.2078,3174.4,3173.7,3.2078]
[1764862287060,2.38602496,3175.1,3173.5,1.3208]
[1764862287061,2.4036,3175.2,3175.1,2.2574]
[1764862287263,3.2078,3175.7,3175.1,4.59519289]
[1764862287463,0.00334351,3175.2,3175.1,4.59519289]
[1764862287761,1.3239,3176.5,3175.1,4.59519289]
[1764862287762,3.2078,3176.9,3175.2,4.32711925]
[1764862287966,2.4036,3176.1,3175.5,4.5286]
[1764862288163,3.2078,3176.9,3176.0,5.912]
[1764862288764,3.21052123,3176.9,3176.8,2.2574]
[1764862289066,0.00272123,3176.9,3176.8,2.2574]
[1764862289569,0.00272123,3176.9,3176.8,4.5912]
[1764862291473,3.2078,3178.0,3176.8,13.799]
[1764862291670,3.2078,3178.0,3177.2,3.2078]
[1764862292275,3.2078,3178.0,3177.9,4.5912]
[1764862292572,3.2078,3178.0,3177.9,2.2606486]
[1764862292573,3.21108947,3178.0,3177.9,2.2606486]
[1764862292776,5.61468947,3178.0,3177.9,0.0032486]
[1764862293075,7.94418947,3178.0,3177.9,0.0032486]
[1764862293370,5.61468947,3178.0,3177.9,0.0032486]
[1764862293770,7.94418947,3178.0,3177.9,0.0032486]
[1764862293971,3.21108947,3178.0,3177.9,4.4830486]
[1764862294369,4.4276,3177.3,3177.2,3.2078]
[1764862294569,4.4276,3177.3,3176.0,1.4782]
[1764862294570,2.1904,3176.6,3176.4,4.5286]
[1764862294874,2.1904,3176.6,3176.5,2.17912299]
[1764862295272,3.2078,3176.9,3176.5,2.17912299]
[1764862295474,4.4276,3176.6,3176.5,0.00710719]
[1764862295675,6.97099496,3176.6,3176.5,0.00710719]
[1764862295878,6.97099496,3176.6,3175.5,3.2078]
[1764862296082,3.2078,3176.1,3175.5,3.2078]
[1764862296371,40.8,3176.8,3176.0,2.1744]
[1764862296372,3.2078,3176.5,3176.0,2.1744]
[1764862296768,0.00471546,3176.6,3176.0,2.1781319]
[1764862296976,3.2078,3176.5,3176.0,2.1781319]
[1764862297372,0.00471546,3176.6,3176.4,2.1744]
[1764862297573,0.00471546,3176.6,3176.5,2.1744]
[1764862298278,2.19511546,3176.6,3176.0,0.0037319]
[1764862298580,0.00471546,3176.6,3176.0,0.0037319]
[1764862299175,0.00471546,3176.6,3176.5,2.1744]
[1764862299679,0.00471546,3176.6,3176.5,4.4798]
[1764862300575,2.19511546,3176.6,3176.5,2.1744]
[1764862300777,2.19511546,3176.6,3176.0,0.0037319]
[1764862301481,2.1904,3176.1,3176.0,0.0037319]
[1764862302078,3.2078,3176.4,3176.0,4.2308319]
[1764862303281,3.2078,3176.4,3176.3,2.0252]
[1764862304278,7.0467,3176.4,3176.0,0.0037319]
[1764862305685,3.2078,3176.4,3176.3,4.0779]
[1764862305980,0.00471546,3176.6,3176.5,5.2362]
[1764862306685,1.88421546,3176.6,3176.5,3.1835]
[1764862307474,0.00471546,3176.6,3176.5,5.2362]
[1764862307777,0.00471546,3176.6,3176.0,4.0816319]
[1764862308386,0.00471546,3176.6,3176.5,5.2362]
[1764862310283,3.2078,3177.6,3176.5,5.39357]
[1764862310483,3.2078,3177.6,3176.7,3.2078]
[1764862310688,3.8389,3176.6,3176.2,3.2078]
[1764862311289,1.8795,3176.6,3176.5,2.0252]
[1764862311599,3.8389,3176.6,3176.2,3.2078]
[1764862312088,1.8795,3176.6,3176.5,2.0252]
[1764862312788,3.8389,3176.6,3176.0,0.0037319]
[1764862314081,5.0873,3177.2,3177.1,2.0252]
[1764862314287,3.2078,3177.2,3177.1,4.0779]
[1764862315289,3.21108947,3178.0,3177.9,4.0779]
[1764862315489,3.21108947,3178.0,3177.6,0.00472299]
[1764862315490,7.04998947,3178.0,3177.6,0.00472299]
[1764862315894,3.8389,3177.7,3177.6,0.00472299]
[1764862316788,4.51267909,3177.7,3177.6,0.00472299]
[1764862319087,2.55327909,3177.7,3177.6,2.02992299]
[1764862319292,1.8795,3177.7,3177.6,2.02992299]
[1764862319784,3.21108947,3178.0,3177.9,2.0252]
[1764862319989,4.18671682,3178.0,3177.9,4.0779]
[1764862320492,4.18671682,3178.0,3177.6,0.00472299]
[1764862320493,3.8389,3177.7,3177.6,0.00472299]
[1764862320697,3.21108947,3178.0,3177.6,4.08262299]
[1764862320901,1.8795,3177.7,3177.6,2.02992299]
[1764862321092,3.21108947,3178.0,3177.9,2.0252]
[1764862321298,5.76418346,3178.0,3177.9,2.0252]
[1764862321489,0.00328947,3178.0,3177.9,7.2857]
[1764862321700,5.0873,3178.6,3178.5,2.0252]
[1764862321995,5.76084628,3178.6,3178.5,2.0252]
[1764862322191,5.0873,3178.6,3178.5,2.0252]
[1764862322397,3.89553045,3180.4,3178.5,5.2362]
[1764862322398,4.3515,3179.5,3178.5,5.2362]
[1764862322592,4.3515,3179.5,3178.7,3.2078]
[1764862322593,0.67298116,3179.4,3178.7,3.2078]
[1764862322795,3.8389,3178.6,3178.5,0.00312723]
[1764862323189,3.2078,3179.1,3178.5,4.08102723]
[1764862323493,3.21179663,3179.5,3178.9,4.0779]
[1764862323696,3.21179663,3179.5,3179.4,2.0252]
[1764862323896,0.00399663,3179.5,3179.4,2.0252]
[1764862324091,0.00399663,3179.5,3179.4,5.0694]
[1764862324693,4.1004,3179.0,3178.5,3.21092723]
[1764862324897,0.00399663,3179.5,3179.0,1.9008]
[1764862325101,0.00399663,3179.5,3178.5,3.21092723]
[1764862325102,2.0774,3179.1,3178.5,0.00312723]
[1764862325300,3.2078,3178.8,3178.5,1.90392723]
[1764862325499,2.023,3178.6,3178.5,0.00312723]
[1764862325706,4.1004,3178.6,3178.5,0.00312723]
[1764862326098,2.023,3178.6,3178.5,0.00312723]
[1764862326296,4.1004,3178.6,3178.5,0.00312723]
[1764862326697,3.2078,3178.8,3178.5,1.90392723]
[1764862326906,4.1004,3178.6,3178.5,0.00312723]
[1764862327301,3.2078,3178.8,3178.5,1.90392723]
[1764862327807,3.2078,3178.8,3178.5,0.00312723]
[1764862327808,4.1004,3178.6,3178.5,0.00312723]
[1764862328007,3.2078,3178.8,3178.5,3.84532723]
[1764862328197,4.1004,3178.6,3178.5,0.00312723]
[1764862329405,3.2078,3178.8,3178.5,3.84532723]
[1764862329810,4.1004,3178.6,3178.5,0.00312723]
[1764862330210,2.023,3177.7,3177.6,0.00472299]
[1764862330908,4.1004,3177.7,3177.6,0.00472299]
[1764862331207,4.1004,3177.7,3177.6,0.00874632]
[1764862332407,2.023,3177.7,3177.6,0.00874632]
[1764862332611,3.2078,3178.0,3177.6,1.90954632]
[1764862332805,2.023,3177.7,3177.6,0.00874632]
[1764862333112,3.2078,3178.0,3177.6,1.90954632]
[1764862333411,4.1004,3177.7,3177.6,0.00874632]
[1764862333800,1.1406,3178.2,3177.6,1.90954632]
[1764862334005,3.2078,3178.0,3177.6,3.01234632]
[1764862334305,3.2078,3178.5,3177.9,3.8422]
[1764862335000,4.1004,3178.0,3177.6,1.11154632]
[1764862335206,2.023,3178.0,3177.6,1.11154632]
[1764862335402,4.1004,3178.0,3177.6,1.11154632]
[1764862335804,3.2078,3178.5,3177.9,3.8422]
[1764862336407,3.2078,3178.5,3178.4,1.9008]
[1764862336609,7.3082,3178.5,3177.9,3.2078]
[1764862337210,7.3082,3178.5,3178.0,1.1028]
[1764862337411,3.36506,3178.9,3178.4,1.9008]
[1764862337608,2.023,3178.5,3178.4,1.9008]
[1764862337808,7.3082,3178.5,3178.0,1.1028]
[1764862340122,4.1004,3178.5,3178.0,1.1028]
[1764862340417,4.1004,3178.5,3177.6,2.96264993]
[1764862340418,4.1004,3177.7,3177.6,0.00874632]
[1764862340610,2.023,3177.1,3177.0,3.2078]
[1764862340815,3.36511,3177.7,3177.0,6.2114]
[1764862341918,3.37214388,3177.7,3177.0,6.21892998]
[1764862342117,0.00703388,3177.7,3177.0,6.21892998]
[1764862342313,3.2078,3177.6,3177.0,6.21892998]
[1764862342509,4.1004,3177.1,3177.0,3.21532998]
[1764862342709,3.2078,3177.6,3177.0,7.05752998]
[1764862342916,3.2078,3177.6,3177.0,8.16032998]
[1764862343117,3.2078,3177.6,3177.5,3.8422]
[1764862344124,7.3082,3177.6,3177.0,4.31812998]
[1764862344535,7.3082,3177.6,3177.0,6.01191359]
[1764862344735,5.2308,3177.6,3177.5,1.9008]
[1764862344925,3.2078,3177.6,3177.5,3.8422]
[1764862346032,3.2078,3177.6,3177.5,4.945]
[1764862346231,0.00703388,3177.7,3177.5,4.945]
[1764862346232,0.00703388,3177.7,3177.6,3.8422]
[1764862347329,3.2078,3178.2,3178.1,3.8422]
[1764862348337,4.1004,3177.9,3177.7,1.69378361]
[1764862348645,2.023,3177.9,3177.8,1.9008]
[1764862348932,4.1004,3177.8,3177.7,1.69378361]
[1764862349133,3.36868758,3178.2,3177.4,3.2078]
[1764862349134,3.36868758,3178.2,3177.6,3.8422]
[1764862349437,7.46908758,3178.2,3177.5,1.1028]
[1764862351338,2.0774,3177.5,3177.4,4.90158361]
[1764862351640,0.8333,3178.0,3177.5,1.1028]
[1764862351641,0.1573,3178.0,3177.5,1.1028]
[1764862352039,3.21139758,3178.2,3177.5,1.1028]
[1764862354840,5.23439758,3178.2,3178.1,1.9008]
[1764862355035,7.17059758,3178.2,3178.1,1.9008]
[1764862355240,7.17059758,3178.2,3177.5,2.79658361]
[1764862355533,7.17059758,3178.2,3177.6,1.69378361]
[1764862355746,1.7533,3177.7,3177.6,1.8408]
[1764862355944,1.7533,3177.5,3177.4,6.74238361]
[1764862356437,3.6895,3177.1,3177.0,1.70081872]
[1764862356628,3.6895,3177.1,3177.0,0.00752998]
[1764862356832,6.8973,3177.1,3177.0,0.00752998]
[1764862358436,3.6895,3176.5,3176.4,1.69328874]
[1764862358637,1.7533,3176.5,3176.4,3.53408874]
[1764862358833,0.7213,3177.0,3176.4,5.33958874]
[1764862359440,0.72602299,3177.0,3176.4,5.34708297]
[1764862359641,3.6895,3176.5,3176.4,1.70078297]
[1764862359945,3.6895,3176.5,3176.4,0.00749423]
[1764862360144,0.00472299,3177.0,3176.5,0.9554]
[1764862360940,1.7533,3176.6,3176.5,1.8408]
[1764862361335,3.6895,3176.5,3176.4,0.00749423]
[1764862361548,0.00472299,3177.0,3176.5,0.9554]
[1764862362136,3.3765,3176.6,3176.4,0.00749423]
[1764862362445,3.2418,3176.5,3176.4,0.00749423]
[1764862362644,1.6186,3176.5,3176.4,1.58119423]
[1764862363045,3.2418,3176.5,3176.4,0.00749423]
[1764862363245,1.6186,3176.5,3176.4,1.58119423]
[1764862363442,0.59182299,3177.0,3176.4,3.22749423]
[1764862363644,0.00472299,3177.0,3176.5,1.0144]
[1764862363946,1.6186,3176.6,3176.5,2.5881]
[1764862364149,0.00472299,3177.0,3176.5,4.2344]
[1764862365746,1.6186,3176.6,3176.5,4.2344]
[1764862367342,0.00472299,3177.0,3176.5,4.2344]
[1764862367540,1.62332299,3177.0,3176.9,1.5737]
[1764862368747,1.62332299,3177.0,3176.9,3.22]
[1764862369147,0.00472299,3177.0,3176.9,3.22]
[1764862369947,3.24652299,3177.0,3176.5,1.0144]
[1764862370149,3.2418,3176.5,3176.4,0.00749423]
[1764862370848,4.2512,3176.5,3176.4,0.00749423]
[1764862371244,1.6186,3176.5,3176.4,1.58119423]
[1764862371445,1.6186,3176.5,3176.4,3.22749423]
[1764862371744,3.2078,3176.7,3176.6,3.22]
[1764862371948,3.2078,3176.7,3176.5,1.0144]
[1764862371949,1.6186,3176.6,3176.5,1.0144]
[1764862372147,4.8264,3176.7,3176.6,1.5737]
[1764862372345,4.8264,3176.7,3176.6,3.22]
[1764862372648,0.00472299,3177.0,3176.9,3.22]
[1764862373351,3.24652299,3177.0,3176.9,1.5737]
[1764862373552,1.62332299,3177.0,3176.9,1.5737]
[1764862373747,0.00472299,3177.0,3176.9,3.22]
[1764862375053,3.2078,3177.7,3176.9,3.22]
[1764862375253,3.2078,3177.7,3176.8,3.2078]
[1764862375254,3.2078,3177.7,3177.0,1.0144]
[1764862375756,1.6186,3177.1,3177.0,2.5881]
[1764862376149,3.2418,3177.1,3176.8,3.2078]
[1764862376355,1.6186,3176.9,3176.8,4.7815]
[1764862376558,3.2078,3177.7,3176.8,6.4278]
[1764862377457,1.6186,3176.9,3176.8,4.7815]
[1764862378553,3.2418,3176.9,3176.8,3.2078]
[1764862379058,0.15736,3176.8,3176.4,0.00749423]
[1764862379355,3.2078,3176.5,3176.4,0.00749423]
[1764862379557,2.5356363,3176.7,3176.4,0.00749423]
[1764862379752,3.2078,3176.5,3176.4,0.00749423]
[1764862380251,3.2078,3176.5,3176.4,3.22749423]
[1764862380650,3.2078,3177.0,3176.8,1.5737]
[1764862380855,3.2078,3177.0,3176.5,1.0144]
[1764862381062,3.2078,3177.0,3176.5,2.5881]
[1764862381460,3.2078,3177.0,3176.9,3.22]
[1764862381660,3.2078,3177.0,3176.5,1.0144]
[1764862381856,3.2078,3176.6,3176.5,4.2344]
[1764862382957,3.2078,3176.6,3176.5,1.0144]
[1764862383350,3.2078,3176.6,3176.4,0.00749423]
[1764862384562,0.30180746,3176.5,3176.4,0.00749423]
[1764862384761,1.13443232,3176.5,3175.7,1.69328874]
[1764862385070,3.2078,3175.9,3175.5,2.64868874]
[1764862385264,3.2078,3175.9,3175.5,2.6462]
[1764862385757,2.5356963,3175.7,3175.5,0.00404278]
[1764862385952,1.13397975,3175.6,3175.4,2.299e-05]
[1764862386153,2.3782763,3175.4,3174.5,1.0144]
[1764862386356,3.2078,3175.1,3174.5,2.70768874]
[1764862386862,3.2078,3174.7,3174.5,0.00369122]
[1764862387556,3.2078,3174.7,3174.5,1.03829122]
[1764862388663,0.15745,3175.0,3174.9,3.3319]
[1764862388664,3.2078,3175.0,3174.9,3.3319]
[1764862388965,3.2078,3175.0,3174.5,1.03829122]
[1764862390268,3.2078,3174.6,3174.5,0.00369122]
[1764862390466,3.36527,3174.6,3174.5,0.00369122]
[1764862390667,3.2078,3174.6,3174.5,0.00369122]
[1764862393663,0.15747,3174.5,3174.3,0.00472299]
[1764862394769,0.15747,3174.5,3174.3,0.00774611]
[1764862395464,3.2078,3174.6,3174.4,1.6908]
[1764862395661,3.2078,3174.6,3174.5,4.3665]
[1764862396466,3.2078,3175.0,3174.9,3.3319]
[1764862397671,3.2078,3175.5,3175.4,3.3319]
[1764862397870,3.2078,3175.5,3175.4,1.6908]
[1764862398069,3.2078,3175.5,3175.0,1.0346]
[1764862398367,3.2078,3175.5,3175.4,1.6908]
[1764862398669,3.21037084,3175.9,3175.5,1.0346]
[1764862398869,3.21037084,3175.9,3175.8,1.6908]
[1764862399074,3.21037084,3175.9,3175.8,3.3319]
[1764862401673,0.00257084,3175.9,3175.8,3.3319]
[1764862401978,0.00257084,3175.9,3175.6,3.2078]
[1764862401979,2.299e-05,3176.0,3175.9,3.3319]
[1764862403070,0.00263386,3176.0,3175.9,3.3319]
[1764862404370,3.2078,3176.8,3176.7,1.6908]
[1764862404573,3.2078,3176.8,3176.7,3.3319]
[1764862405078,3.2078,3176.8,3176.5,1.0346]
[1764862405374,3.2078,3176.8,3176.5,1.03791296]
[1764862405375,3.21116092,3176.8,3176.5,1.03791296]
[1764862407379,5.58943722,3176.8,3175.5,1.0346]
[1764862407682,3.2078,3175.8,3175.5,1.0346]
[1764862408080,3.2078,3175.8,3175.7,1.6908]
[1764862408275,3.2078,3175.8,3175.7,1.69340706]
[1764862408975,3.2078,3175.8,3175.7,0.00260706]
[1764862410076,3.2078,3175.8,3175.4,0.00472299]
[1764862410278,0.15744,3175.1,3174.5,1.0346]
[1764862410470,3.2078,3174.9,3174.0,1.0346]
[1764862410674,3.2078,3174.4,3174.0,1.0346]
[1764862410977,3.2078,3174.4,3174.3,1.6908]
[1764862411181,3.21124337,3174.4,3174.3,1.69345953]
[1764862411367,3.21124337,3174.4,3174.3,0.00265953]
[1764862414287,3.21124337,3174.4,3174.3,1.69345953]
[1764862414481,0.00344337,3174.4,3174.3,6.51815953]
[1764862414677,0.00472299,3174.7,3174.6,4.2844]
[1764862415577,0.00778745,3174.7,3174.6,4.2844]
[1764862416178,3.2078,3175.2,3175.1,3.3496]
[1764862417379,3.21158322,3175.2,3174.6,0.9348]
[1764862418591,3.21158322,3175.2,3175.1,1.7327]
[1764862418786,3.21158322,3175.2,3175.1,3.3496]
[1764862419288,0.00378322,3175.2,3175.1,3.3496]
[1764862420694,0.00378322,3175.2,3175.1,1.7327]
[1764862421993,3.21158322,3175.2,3175.0,0.9348]
[1764862424101,3.21158322,3175.2,3175.1,2.9668]
[1764862426291,3.21158322,3175.2,3175.0,0.9348]
[1764862426698,3.21158322,3175.2,3175.1,2.9668]
[1764862426897,0.00378322,3175.2,3175.1,2.9668]
[1764862427095,3.08052613,3175.6,3175.5,3.8308]
[1764862427406,3.2078,3176.4,3176.3,2.9668]
[1764862427901,0.23529237,3177.8,3176.3,2.9668]
[1764862427902,3.2078,3177.0,3176.9,2.9668]
[1764862428098,3.21051486,3177.0,3176.9,2.96912399]
[1764862428301,0.00271486,3177.0,3176.9,2.96912399]
[1764862428493,12.01761486,3177.0,3176.9,0.00232399]
[1764862428696,2.8071,3176.2,3176.1,3.2078]
[1764862428998,2.8071,3176.2,3175.5,4.0718]
[1764862429305,0.8218,3176.4,3175.5,4.623]
[1764862429801,0.8218,3176.4,3175.6,0.00472299]
[1764862431005,1.3975,3175.7,3175.6,0.00472299]
[1764862431504,1.3975,3175.7,3175.6,1.41992299]
[1764862432102,0.8218,3176.4,3175.6,1.41992299]
[1764862432502,2.8071,3175.7,3175.6,0.00472299]
[1764862433603,3.2078,3176.0,3175.6,0.00472299]
[1764862433604,3.2078,3176.0,3175.6,2.97152299]
[1764862433900,4.6053,3176.0,3175.6,0.00472299]
[1764862435205,4.6053,3176.0,3175.9,1.4152]
[1764862435409,3.2078,3176.0,3175.9,2.9668]
[1764862435602,2.8071,3176.0,3175.6,0.00472299]
[1764862435907,1.3975,3175.7,3175.6,1.41992299]
[1764862436508,3.2078,3176.4,3175.6,2.97152299]
[1764862440608,2.8071,3175.7,3175.6,0.00472299]
[1764862441608,5.61390447,3175.7,3175.6,0.00472299]
[1764862441808,3.2078,3175.8,3175.5,3.83381826]
[1764862442006,2.8071,3175.6,3175.5,2.28221826]
[1764862442200,3.2078,3175.8,3175.7,2.9668]
[1764862442401,2.8071,3175.6,3175.5,0.00301826]
[1764862442613,2.96452,3175.6,3174.7,4.90108874]
[1764862442812,3.2078,3175.4,3174.8,0.00472299]
[1764862443312,0.00472299,3175.5,3175.4,2.9668]
[1764862443506,3.2078,3176.7,3176.2,2.9668]
[1764862443809,2.8071,3176.3,3176.2,0.0037632]
[1764862444010,2.8071,3176.3,3176.2,1.5143632]
[1764862444405,3.2078,3176.7,3176.2,2.9747632]
[1764862444602,2.93192299,3176.6,3176.2,0.0037632]
[1764862445003,1.4457,3176.3,3176.2,0.0037632]
[1764862445208,2.9272,3176.3,3176.2,0.0037632]
[1764862446009,0.00472299,3176.6,3176.2,2.9747632]
[1764862446211,0.00472299,3176.6,3176.5,3.8735]
[1764862447611,0.00472299,3176.6,3176.5,2.4131]
[1764862447804,0.00472299,3176.6,3176.5,3.8735]
[1764862449015,1.4457,3176.4,3176.3,4.7184]
[1764862449216,1.4457,3176.4,3176.3,6.1788]